bitfinex/quotes_BTCUSD_20250408
["timestamp","ask_amount","ask_price","bid_price","bid_amount"]
[1744103540608,0.27361384,79213.0,79212.0,0.13025864]
[1744103540810,0.28597639,79213.0,79212.0,0.12625864]
[1744103541160,0.28597639,79213.0,79212.0,0.12725864]
[1744103541390,0.28597639,79213.0,79212.0,0.12825864]
[1744103542222,0.62597639,79213.0,79212.0,0.12825864]
[1744103542470,0.62597639,79213.0,79212.0,0.12725864]
[1744103542914,0.62797639,79213.0,79212.0,0.12725864]
[1744103547670,0.62797639,79213.0,79212.0,0.001]
[1744103548395,0.352624,79212.0,79211.0,7.8e-07]
[1744103548854,0.35962806,79212.0,79211.0,7.8e-07]
[1744103549744,0.01962806,79212.0,79211.0,7.8e-07]
[1744103550536,0.02262806,79212.0,79211.0,7.8e-07]
[1744103550839,0.02462806,79212.0,79211.0,7.8e-07]
[1744103551054,0.02562806,79212.0,79211.0,0.00100078]
[1744103551477,0.03362806,79212.0,79211.0,0.00100078]
[1744103551654,0.05361632,79212.0,79211.0,0.00100078]
[1744103552299,0.37362806,79212.0,79211.0,0.00100078]
[1744103553524,0.37362806,79212.0,79211.0,7.8e-07]
[1744103556828,0.51952806,79212.0,79211.0,7.8e-07]
[1744103557034,0.53406891,79212.0,79211.0,7.8e-07]
[1744103557236,0.605211,79182.0,79181.0,0.002336]
[1744103557477,0.605251,79170.0,79169.0,1e-06]
[1744103557689,0.605251,79170.0,79169.0,0.12625964]
[1744103557923,0.61189226,79170.0,79169.0,1e-06]
[1744103558673,0.012633,79156.0,79150.0,0.046736]
[1744103558947,0.62416182,79156.0,79155.0,0.12659464]
[1744103559905,0.62416182,79156.0,79155.0,0.000336]
[1744103560691,0.62516182,79156.0,79155.0,0.000336]
[1744103561973,0.352633,79152.0,79149.0,1e-07]
[1744103562244,0.605338,79144.0,79143.0,2e-07]
[1744103562485,0.6116413,79144.0,79143.0,2e-07]
[1744103563601,0.611726,79144.0,79143.0,2e-07]
[1744103564222,0.616726,79144.0,79143.0,2e-07]
[1744103564624,0.624726,79144.0,79143.0,2e-07]
[1744103564838,0.75098145,79144.0,79143.0,2e-07]
[1744103565035,0.624726,79144.0,79143.0,2e-07]
[1744103565259,0.284726,79144.0,79143.0,0.12625884]
[1744103566343,0.284726,79144.0,79143.0,2e-07]
[1744103570161,0.284726,79144.0,79143.0,0.12625884]
[1744103571809,0.284726,79144.0,79143.0,2e-07]
[1744103572290,0.41098145,79144.0,79143.0,2e-07]
[1744103575185,0.75098145,79144.0,79143.0,2e-07]
[1744103576787,0.624726,79144.0,79143.0,2e-07]
[1744103578473,0.624726,79144.0,79143.0,0.12625884]
[1744103578864,0.019388,79144.0,79143.0,0.39160084]
[1744103579107,0.019388,79144.0,79143.0,0.12625884]
[1744103579317,0.011388,79144.0,79143.0,0.19552642]
[1744103579519,0.3440847,79144.0,79143.0,0.19552642]
[1744103579742,0.35024936,79144.0,79143.0,0.19552642]
[1744103580073,0.35224936,79144.0,79143.0,0.12625884]
[1744103580202,0.36488436,79144.0,79143.0,0.12625884]
[1744103580409,0.35224936,79144.0,79143.0,0.12625884]
[1744103580660,0.01224936,79144.0,79143.0,0.13889384]
[1744103580866,0.01224936,79144.0,79143.0,0.24774523]
[1744103581063,0.0060847,79144.0,79143.0,0.24774523]
[1744103581464,0.0060847,79144.0,79143.0,0.23511023]
[1744103581618,0.01226587,79144.0,79143.0,0.23511023]
[1744103581824,0.01226587,79144.0,79143.0,0.24774523]
[1744103582049,0.0020847,79144.0,79143.0,0.24774523]
[1744103582242,0.0020847,79144.0,79143.0,0.25711557]
[1744103582474,0.0030847,79144.0,79143.0,0.26011557]
[1744103582705,0.0010847,79144.0,79143.0,0.26011557]
[1744103582853,8.47e-05,79144.0,79143.0,0.14488889]
[1744103583053,0.00735321,79144.0,79143.0,0.40259589]
[1744103583239,0.00735321,79144.0,79143.0,0.40386055]
[1744103583441,0.00735321,79144.0,79143.0,0.41323089]
[1744103583691,0.00835321,79144.0,79143.0,0.41823089]
[1744103583843,0.00835321,79144.0,79143.0,0.46994178]
[1744103584457,0.0020847,79144.0,79143.0,0.46994178]
[1744103584664,0.00835321,79144.0,79143.0,0.46994178]
[1744103584879,0.0020847,79144.0,79143.0,0.46994178]
[1744103585284,0.2529406,79176.0,79166.0,0.048]
[1744103585285,0.14908,79172.0,79166.0,0.048]
[1744103585460,0.252622,79170.0,79167.0,0.13358494]
[1744103585668,0.34640096,79169.0,79167.0,0.13358494]
[1744103586650,0.34640096,79169.0,79168.0,0.00940175]
[1744103586855,0.34640096,79169.0,79168.0,0.13566039]
[1744103587048,0.36203196,79169.0,79168.0,0.13566039]
[1744103587248,0.36203196,79169.0,79168.0,0.15480114]
[1744103587490,0.36203196,79169.0,79168.0,0.14539939]
[1744103587832,0.35903196,79169.0,79168.0,0.14539939]
[1744103588634,0.35903196,79169.0,79168.0,0.15498388]
[1744103588992,0.36103196,79169.0,79168.0,0.15498388]
[1744103589192,0.36303196,79169.0,79168.0,0.13584313]
[1744103589394,0.36303196,79169.0,79168.0,0.12625864]
[1744103589745,0.01240096,79169.0,79168.0,0.12625864]
[1744103590102,0.01240096,79169.0,79168.0,0.19646654]
[1744103590342,0.01240096,79169.0,79168.0,0.21100739]
[1744103590510,0.006,79169.0,79168.0,0.31226527]
[1744103590684,0.006,79169.0,79168.0,0.29772442]
[1744103590891,0.002,79169.0,79168.0,0.29772442]
[1744103591956,0.0003366,79176.0,79171.0,0.01263]
[1744103592177,0.0003366,79176.0,79175.0,0.12625864]
[1744103592381,0.0003366,79176.0,79175.0,0.1654099]
[1744103592587,0.0003366,79176.0,79175.0,0.4306439]
[1744103592803,0.0003366,79176.0,79175.0,0.1780399]
[1744103593262,0.0003366,79176.0,79175.0,0.18056568]
[1744103593502,0.0003366,79176.0,79175.0,0.2319399]
[1744103593942,0.0013366,79176.0,79175.0,0.24046554]
[1744103594170,0.0013366,79176.0,79175.0,0.30955328]
[1744103594875,0.0013366,79176.0,79175.0,0.72395328]
[1744103600569,0.0013366,79176.0,79175.0,0.71895328]
[1744103601671,0.0003366,79176.0,79175.0,0.71295328]
[1744103601890,0.0003366,79176.0,79175.0,0.72095328]
[1744103602506,0.0013366,79176.0,79175.0,0.72795328]
[1744103602870,0.0013366,79176.0,79175.0,0.71341243]
[1744103603315,0.0013366,79176.0,79175.0,0.7040399]
[1744103605636,0.0013366,79176.0,79175.0,0.71340403]
[1744103606731,0.0013366,79176.0,79175.0,0.70077403]
[1744103606921,0.0013366,79176.0,79175.0,0.96600803]
[1744103607637,0.0013366,79176.0,79175.0,0.9566439]
[1744103608162,0.0013366,79176.0,79175.0,0.6437099]
[1744103608386,0.0013366,79176.0,79175.0,0.6563399]
[1744103608613,0.00805379,79176.0,79175.0,0.6563399]
[1744103608838,0.0013366,79176.0,79175.0,0.6563399]
[1744103609559,0.0013366,79176.0,79175.0,0.66573347]
[1744103613686,0.0013366,79176.0,79175.0,0.65310347]
[1744103613884,0.0013366,79176.0,79175.0,0.60420347]
[1744103614111,0.00804057,79176.0,79175.0,0.60420347]
[1744103614313,0.00804057,79176.0,79175.0,0.61683347]
[1744103614729,0.0013366,79176.0,79175.0,0.61683347]
[1744103615374,0.0139666,79176.0,79175.0,0.60420347]
[1744103615717,0.02067057,79176.0,79175.0,0.60420347]
[1744103616316,0.02067057,79176.0,79175.0,0.56505221]
[1744103617070,0.02067057,79176.0,79175.0,0.55565864]
[1744103617452,0.01967057,79176.0,79175.0,0.54865864]
[1744103617631,0.01967057,79176.0,79175.0,0.55165864]
[1744103618236,0.01967057,79176.0,79175.0,0.12625864]
[1744103618455,0.01967057,79176.0,79175.0,0.13568752]
[1744103618654,0.01967057,79176.0,79175.0,0.13968752]
[1744103618950,0.01967057,79176.0,79175.0,0.12725864]
[1744103619175,0.01967057,79176.0,79175.0,0.13025864]
[1744103619379,0.01967057,79176.0,79175.0,0.1429845]
[1744103620026,0.01967057,79176.0,79175.0,0.15241776]
[1744103620785,0.00704057,79176.0,79175.0,0.15241776]
[1744103629275,0.00704057,79176.0,79175.0,0.1429845]
[1744103633945,0.01967057,79176.0,79175.0,0.1429845]
[1744103636229,0.01967057,79176.0,79175.0,0.13025864]
[1744103636230,0.35967057,79176.0,79175.0,0.13025864]
[1744103636408,0.35967057,79176.0,79175.0,0.004]
[1744103636983,0.012631,79168.0,79167.0,0.00042078]
[1744103637363,0.35263,79172.0,79167.0,0.12667942]
[1744103637564,0.00656324,79168.0,79167.0,0.01305178]
[1744103637745,0.34,79172.0,79171.0,0.265247]
[1744103637939,0.009971,79175.0,79171.0,0.39150564]
[1744103638214,0.009971,79175.0,79172.0,0.12625864]
[1744103638410,0.252606,79175.0,79173.0,0.07204154]
[1744103638640,0.592606,79175.0,79174.0,0.12625864]
[1744103638991,0.605236,79175.0,79174.0,0.12625864]
[1744103639192,0.34,79175.0,79174.0,0.12625864]
[1744103640125,0.35263,79175.0,79174.0,0.12625864]
[1744103640342,0.35263,79175.0,79174.0,0.19779692]
[1744103640543,0.35263,79175.0,79174.0,0.12625864]
[1744103640886,0.35263,79175.0,79174.0,0.12725864]
[1744103641083,0.34,79175.0,79174.0,0.12725864]
[1744103641297,0.605234,79175.0,79174.0,0.12725864]
[1744103641921,0.61179904,79175.0,79174.0,0.12725864]
[1744103642139,0.61179904,79175.0,79174.0,0.16745405]
[1744103644207,0.61179904,79175.0,79174.0,0.12725864]
[1744103656462,0.34656504,79175.0,79174.0,0.12725864]
[1744103657399,0.35919504,79175.0,79174.0,0.12725864]
[1744103662247,0.34656504,79175.0,79174.0,0.12725864]
[1744103662619,0.34656504,79175.0,79174.0,0.13988864]
[1744103662831,0.34656504,79175.0,79174.0,0.2369675]
[1744103663028,0.34656504,79175.0,79174.0,0.2464013]
[1744103665076,0.34656504,79175.0,79174.0,0.2337713]
[1744103666158,0.34656504,79175.0,79174.0,0.13669244]
[1744103666422,0.34656504,79175.0,79174.0,0.12725864]
[1744103666989,0.35919504,79175.0,79174.0,0.12725864]
[1744103672806,0.34656504,79175.0,79174.0,0.12725864]
[1744103674774,0.35919504,79175.0,79174.0,0.12725864]
[1744103675164,0.35919504,79175.0,79174.0,0.1990781]
[1744103675366,0.35919504,79175.0,79174.0,0.12725864]
[1744103688099,0.35919504,79175.0,79174.0,0.17675864]
[1744103689491,0.35919504,79175.0,79174.0,0.12725864]
[1744103689831,0.29604404,79175.0,79174.0,0.12725864]
[1744103691661,0.29604404,79175.0,79174.0,1e-06]
[1744103691880,0.012631,79168.0,79167.0,0.00042078]
[1744103692083,0.605258,79168.0,79167.0,0.00042078]
[1744103692261,0.61173727,79168.0,79167.0,0.00042078]
[1744103692709,0.62469842,79168.0,79167.0,0.00042078]
[1744103693818,0.62469842,79168.0,79167.0,0.00142078]
[1744103694320,0.62769842,79168.0,79167.0,0.00142078]
[1744103694615,0.62769842,79168.0,79167.0,0.00042078]
[1744103694944,0.62969842,79168.0,79167.0,0.00042078]
[1744103696096,0.02444042,79168.0,79167.0,0.12667942]
[1744103696300,0.03707142,79168.0,79167.0,0.14671376]
[1744103697115,0.03407142,79168.0,79167.0,0.14671376]
[1744103697518,0.03507142,79168.0,79167.0,0.14671376]
[1744103697977,0.03407142,79168.0,79167.0,0.14671376]
[1744103698182,0.03507142,79168.0,79167.0,0.14671376]
[1744103698920,0.03707142,79168.0,79167.0,0.14671376]
[1744103700407,0.03507142,79168.0,79167.0,0.14671376]
[1744103700580,0.03207142,79168.0,79167.0,0.14671376]
[1744103700808,0.03307142,79168.0,79167.0,0.14671376]
[1744103700985,0.03507142,79168.0,79167.0,0.14671376]
[1744103701774,0.37507142,79168.0,79167.0,0.12667942]
[1744103702368,0.37507142,79168.0,79167.0,0.00042078]
[1744103704256,0.51851142,79168.0,79167.0,0.00042078]
[1744103704462,0.51751142,79168.0,79167.0,0.00042078]
[1744103704676,0.52051142,79168.0,79167.0,0.00042078]
[1744103704887,0.55396369,79168.0,79167.0,7.8e-07]
[1744103705464,0.55596369,79168.0,79167.0,7.8e-07]
[1744103707158,0.012635,79144.0,79143.0,2e-07]
[1744103707361,0.265338,79144.0,79143.0,0.12638515]
[1744103707564,0.27180581,79144.0,79143.0,0.12638515]
[1744103708174,0.71732179,79144.0,79143.0,0.00012651]
[1744103708512,0.71832179,79144.0,79143.0,0.00812651]
[1744103708868,0.71832179,79144.0,79143.0,0.00012651]
[1744103708869,0.71732179,79144.0,79143.0,0.00012651]
[1744103709263,0.61380581,79144.0,79143.0,0.00012651]
[1744103710507,0.61180581,79144.0,79143.0,0.00012651]
[1744103710716,0.61680581,79144.0,79143.0,0.00012651]
[1744103711019,0.61480581,79144.0,79143.0,0.00012651]
[1744103711229,0.61780581,79144.0,79143.0,0.00112651]
[1744103711379,0.74406126,79144.0,79143.0,0.00112651]
[1744103711579,0.79896126,79144.0,79143.0,5.1e-07]
[1744103712075,0.605365,79136.0,79135.0,0.0001679]
[1744103712295,0.750845,79136.0,79135.0,0.0002942]
[1744103712451,0.75700135,79136.0,79135.0,0.0002942]
[1744103712623,0.85862125,79136.0,79135.0,0.0002942]
[1744103712975,0.75700135,79136.0,79135.0,0.0002942]
[1744103713312,0.61152135,79136.0,79135.0,0.0002942]
[1744103713511,0.75700135,79136.0,79135.0,0.0002942]
[1744103713843,0.76100135,79136.0,79135.0,0.0002942]
[1744103714324,0.76600135,79136.0,79135.0,0.0002942]
[1744103714540,0.8952568,79136.0,79135.0,0.0002942]
[1744103714953,0.76900135,79136.0,79135.0,0.0002942]
[1744103717481,0.62352135,79136.0,79135.0,0.0002942]
[1744103717778,0.62352135,79136.0,79135.0,0.12655284]
[1744103718203,0.62052135,79136.0,79135.0,0.12655284]
[1744103718620,0.62252135,79136.0,79135.0,0.12655284]
[1744103719761,0.61352135,79136.0,79135.0,0.12655284]
[1744103720160,0.61752135,79136.0,79135.0,0.12655284]
[1744103720933,0.27752135,79136.0,79135.0,0.12655284]
[1744103721130,0.27752135,79136.0,79135.0,0.14852174]
[1744103721574,0.27752135,79136.0,79135.0,0.12655284]
[1744103721749,0.27552135,79136.0,79135.0,0.12655284]
[1744103721948,0.27552135,79136.0,79135.0,0.0002942]
[1744103722316,0.61552135,79136.0,79135.0,2e-07]
[1744103722444,0.605379,79132.0,79131.0,4e-07]
[1744103722644,0.88308544,79132.0,79131.0,0.00010124]
[1744103724277,0.88808544,79132.0,79131.0,0.00110124]
[1744103724470,0.89208544,79132.0,79131.0,0.00110124]
[1744103726467,0.76586999,79132.0,79131.0,0.00110124]
[1744103733812,0.76586999,79132.0,79131.0,2.4e-07]
[1744103737422,0.605405,79124.0,79123.0,0.0001681]
[1744103737763,0.61141373,79124.0,79123.0,0.0001681]
[1744103737962,0.7256349,79124.0,79123.0,0.0001681]
[1744103739442,0.7296349,79124.0,79123.0,0.0001681]
[1744103739661,0.7256349,79124.0,79123.0,0.0001681]
[1744103739868,0.61141373,79124.0,79123.0,0.0001681]
[1744103740407,0.61641373,79124.0,79123.0,0.17522674]
[1744103741020,0.62141373,79124.0,79123.0,0.17522674]
[1744103742100,0.61641373,79124.0,79123.0,0.17522674]
[1744103742235,0.61141373,79124.0,79123.0,0.17522674]
[1744103742437,0.61241373,79124.0,79123.0,0.17522674]
[1744103742682,0.61441373,79124.0,79123.0,0.17457878]
[1744103746253,0.7289349,79124.0,79123.0,0.12577878]
[1744103746392,0.605412,79122.0,79116.0,0.0461]
[1744103746591,0.605412,79122.0,79112.0,0.0498683]
[1744103746845,0.61035799,79122.0,79112.0,0.0498683]
[1744103747476,0.61035799,79122.0,79121.0,0.12825864]
[1744103748840,0.61235799,79122.0,79121.0,0.12825864]
[1744103749705,0.62586437,79122.0,79121.0,0.12825864]
[1744103750685,0.75211982,79122.0,79121.0,0.12825864]
[1744103751033,0.75211982,79122.0,79121.0,0.002]
[1744103751881,0.75111982,79122.0,79121.0,0.002]
[1744103752164,0.75211982,79122.0,79121.0,0.002]
[1744103752366,0.75611982,79122.0,79121.0,0.002]
[1744103755241,0.62986437,79122.0,79121.0,0.002]
[1744103755539,0.77522437,79122.0,79121.0,0.002]
[1744103758911,0.62986437,79122.0,79121.0,0.12825864]
[1744103760697,0.62986437,79122.0,79121.0,0.002]
[1744103764707,0.62986437,79122.0,79121.0,0.17585864]
[1744103764861,0.02445237,79122.0,79121.0,0.2060825]
[1744103765249,0.03214438,79122.0,79121.0,0.22145864]
[1744103765394,0.02914438,79122.0,79121.0,0.22145864]
[1744103765598,0.03410146,79122.0,79121.0,0.22145864]
[1744103765802,0.03310146,79122.0,79121.0,0.22145864]
[1744103766004,0.03710146,79122.0,79121.0,0.22145864]
[1744103766403,0.03310146,79122.0,79121.0,0.22145864]
[1744103767505,0.03010146,79122.0,79121.0,0.22145864]
[1744103768511,0.03010146,79122.0,79121.0,0.12825864]
[1744103768753,0.03010146,79122.0,79121.0,0.002]
[1744103768952,0.03010146,79122.0,79121.0,0.12825864]
[1744103769869,0.03310146,79122.0,79121.0,0.12825864]
[1744103770076,0.03010146,79122.0,79121.0,0.12825864]
[1744103770613,0.37010146,79122.0,79121.0,0.002]
[1744103770805,0.48546871,79122.0,79121.0,0.002]
[1744103771383,0.48846871,79122.0,79121.0,0.002]
[1744103771928,0.48546871,79122.0,79121.0,0.002]
[1744103772060,0.49246871,79122.0,79121.0,0.002]
[1744103772941,0.63782871,79122.0,79121.0,0.002]
[1744103781696,0.63782871,79122.0,79112.0,0.0001683]
[1744103781697,0.01264,79113.0,79112.0,0.0001683]
[1744103781911,0.265442,79113.0,79112.0,0.0001683]
[1744103782091,0.27033033,79113.0,79112.0,0.0001683]
[1744103782662,0.61033033,79113.0,79112.0,0.0001683]
[1744103783068,0.605472,79104.0,79103.0,0.0001681]
[1744103783316,0.605472,79104.0,79099.0,9.806e-05]
[1744103783317,0.252844,79100.0,79099.0,9.806e-05]
[1744103783526,0.27031981,79100.0,79099.0,9.806e-05]
[1744103784419,0.27031981,79100.0,79099.0,0.0005194]
[1744103784759,0.28031981,79100.0,79099.0,0.0005194]
[1744103784959,0.62031981,79100.0,79099.0,0.0461194]
[1744103785396,0.65377208,79100.0,79099.0,0.0461194]
[1744103785572,0.62031981,79100.0,79099.0,0.0461194]
[1744103786092,0.62031981,79100.0,79099.0,0.17237804]
[1744103787119,0.61531981,79100.0,79099.0,0.17237804]
[1744103787459,0.61031981,79100.0,79099.0,0.17237804]
[1744103787696,0.00483381,79100.0,79099.0,0.17237804]
[1744103787861,0.00483381,79100.0,79099.0,0.23487104]
[1744103788068,0.0099977,79107.0,79106.0,0.012641]
[1744103788310,0.252813,79110.0,79107.0,0.0452]
[1744103788429,0.252813,79110.0,79108.0,0.12625864]
[1744103788627,0.01264,79109.0,79108.0,0.12625864]
[1744103790167,0.01464,79109.0,79108.0,0.12625864]
[1744103790589,0.01264,79109.0,79108.0,0.12625864]
[1744103790986,0.01264,79109.0,79108.0,0.12725864]
[1744103791208,0.004,79110.0,79109.0,0.01264]
[1744103791405,0.265425,79119.0,79112.0,0.01264]
[1744103791616,0.265431,79117.0,79113.0,0.12625864]
[1744103792007,0.265434,79116.0,79113.0,0.12625864]
[1744103792214,0.265434,79116.0,79114.0,0.04523596]
[1744103792415,0.265434,79116.0,79115.0,0.12625864]
[1744103792613,0.265431,79117.0,79115.0,0.12625864]
[1744103793382,0.012639,79116.0,79115.0,0.12625864]
[1744103793602,0.0099028,79120.0,79119.0,0.265422]
[1744103793750,0.0099028,79120.0,79119.0,0.5541116]
[1744103793951,0.265361,79138.0,79132.0,0.252741]
[1744103794134,0.012636,79136.0,79133.0,0.17145864]
[1744103794822,0.265371,79134.0,79133.0,0.17145864]
[1744103795027,0.27774912,79134.0,79133.0,0.17145864]
[1744103795226,0.27774912,79134.0,79133.0,0.17154334]
[1744103797129,0.27774912,79134.0,79133.0,0.17254334]
[1744103797328,0.27874912,79134.0,79133.0,0.17254334]
[1744103799202,0.01337812,79134.0,79133.0,0.19739934]
[1744103799916,0.01826018,79134.0,79133.0,0.19739934]
[1744103800083,0.03089618,79134.0,79133.0,0.19739934]
[1744103800297,0.03089618,79134.0,79133.0,0.17254334]
[1744103813089,0.03089618,79134.0,79133.0,0.12734334]
[1744103816881,0.03089618,79134.0,79133.0,0.17484334]
[1744103817081,0.01826018,79134.0,79133.0,0.17484334]
[1744103817916,0.03089618,79134.0,79133.0,0.17484334]
[1744103818316,0.03089618,79134.0,79133.0,0.19232767]
[1744103819530,0.03089618,79134.0,79133.0,0.17484334]
[1744103823790,0.03089618,79134.0,79133.0,0.12734334]
[1744103829132,0.01826018,79134.0,79133.0,0.12734334]
[1744103829886,0.03089618,79134.0,79133.0,0.12734334]
[1744103833125,0.37089618,79134.0,79133.0,0.12734334]
[1744103840233,0.37089618,79134.0,79133.0,0.18807767]
[1744103841917,0.37089618,79134.0,79133.0,0.17534334]
[1744103845056,0.37089618,79134.0,79133.0,0.0010847]
[1744103845257,0.265425,79118.0,79114.0,0.048]
[1744103845458,0.01264,79111.0,79109.0,0.0479]
[1744103845699,0.01264,79111.0,79110.0,0.25962471]
[1744103845856,0.27035719,79111.0,79110.0,0.23882064]
[1744103847400,0.27135719,79111.0,79110.0,0.24082064]
[1744103848467,0.27235719,79111.0,79110.0,0.24182064]
[1744103849917,0.27135719,79111.0,79110.0,0.23982064]
[1744103850128,0.27135719,79111.0,79110.0,0.24082064]
[1744103850341,0.27035719,79111.0,79110.0,0.23982064]
[1744103850536,0.61035719,79111.0,79110.0,0.12667998]
[1744103850774,0.61035719,79111.0,79110.0,0.12767998]
[1744103851132,0.61035719,79111.0,79110.0,0.12667998]
[1744103851478,0.73761264,79111.0,79110.0,0.12667998]
[1744103852424,0.61135719,79111.0,79110.0,0.12667998]
[1744103856385,0.61135719,79111.0,79110.0,0.17517998]
[1744103857444,0.61135719,79111.0,79110.0,0.17617998]
[1744103858136,0.61035719,79111.0,79110.0,0.17617998]
[1744103858727,0.61035719,79111.0,79110.0,0.17717998]
[1744103859612,0.27035719,79111.0,79110.0,0.17717998]
[1744103862495,0.00490819,79111.0,79110.0,0.17717998]
[1744103862733,0.265448,79112.0,79110.0,0.17717998]
[1744103862936,0.005,79148.0,79110.0,0.17717998]
[1744103862937,0.0099696,79118.0,79111.0,0.17525304]
[1744103863093,0.25279,79117.0,79111.0,0.12625864]
[1744103863320,0.252805,79113.0,79111.0,0.12625864]
[1744103863721,0.01264,79112.0,79111.0,0.12625864]
[1744103864619,0.01264,79112.0,79111.0,0.12825864]
[1744103865021,0.01264,79112.0,79111.0,0.12725864]
[1744103865339,0.01264,79112.0,79111.0,0.12825864]
[1744103866061,0.265438,79115.0,79111.0,0.17498924]
[1744103866257,0.265438,79115.0,79111.0,0.17798924]
[1744103866690,0.00490003,79114.0,79111.0,0.17798924]
[1744103867196,0.27034103,79114.0,79111.0,0.17398924]
[1744103867342,0.27034103,79114.0,79111.0,0.17498924]
[1744103867543,0.27034103,79114.0,79112.0,0.05366636]
[1744103867746,0.27034103,79114.0,79113.0,0.12625864]
[1744103869815,0.27034103,79114.0,79113.0,0.12825864]
[1744103870027,0.27034103,79114.0,79113.0,0.12925864]
[1744103871885,0.27034103,79114.0,79113.0,0.003]
[1744103872086,0.37926479,79114.0,79113.0,0.003]
[1744103872957,0.27034103,79114.0,79113.0,0.003]
[1744103873337,0.27034103,79114.0,79113.0,0.12925864]
[1744103875662,0.265441,79114.0,79113.0,0.12925864]
[1744103877673,0.25711488,79114.0,79113.0,0.12925864]
[1744103879315,0.59711488,79114.0,79113.0,0.003]
[1744103881237,0.34,79113.0,79110.0,0.00042134]
[1744103881390,0.605486,79100.0,79091.0,0.0021682]
[1744103881593,0.605486,79100.0,79099.0,0.1263567]
[1744103882085,0.650786,79100.0,79099.0,9.806e-05]
[1744103882297,0.605513,79092.0,79091.0,0.0021682]
[1744103883629,0.607513,79092.0,79091.0,0.0021682]
[1744103884316,0.605513,79092.0,79091.0,0.0031682]
[1744103884689,0.605513,79092.0,79091.0,0.0021682]
[1744103885187,0.611513,79092.0,79091.0,0.0021682]
[1744103885812,0.618513,79092.0,79091.0,0.0021682]
[1744103887670,0.7334655,79092.0,79091.0,0.0021682]
[1744103888420,0.618513,79092.0,79091.0,0.0021682]
[1744103889757,0.365643,79092.0,79091.0,0.12842684]
[1744103889904,0.618513,79092.0,79091.0,0.12842684]
[1744103890608,0.605513,79092.0,79091.0,0.12842684]
[1744103890807,0.606513,79092.0,79091.0,0.12842684]
[1744103891280,0.605513,79092.0,79091.0,0.12842684]
[1744103891472,0.605513,79092.0,79091.0,0.12942684]
[1744103891837,0.605513,79092.0,79091.0,0.13042684]
[1744103893284,0.65550867,79092.0,79091.0,0.13042684]
[1744103893508,0.65550867,79092.0,79091.0,0.0041682]
[1744103893680,0.79994867,79092.0,79091.0,0.0041682]
[1744103894082,0.749953,79092.0,79091.0,0.0041682]
[1744103894282,0.749953,79092.0,79091.0,0.0021682]
[1744103894488,0.749953,79092.0,79091.0,0.0031682]
[1744103894704,0.750953,79092.0,79091.0,0.0031682]
[1744103894854,0.749953,79092.0,79091.0,0.0031682]
[1744103895207,0.752953,79092.0,79091.0,0.0021682]
[1744103895381,0.754953,79092.0,79091.0,0.0021682]
[1744103895586,0.751953,79092.0,79091.0,0.0021682]
[1744103895789,0.749953,79092.0,79091.0,0.0021682]
[1744103897130,0.752953,79092.0,79091.0,0.0021682]
[1744103897309,0.756953,79092.0,79091.0,0.0021682]
[1744103899288,0.81221126,79092.0,79091.0,0.0021682]
[1744103899716,0.756953,79092.0,79091.0,0.0021682]
[1744103900124,0.612513,79092.0,79091.0,0.0021682]
[1744103900439,0.612513,79092.0,79091.0,0.17602684]
[1744103901167,0.609513,79092.0,79091.0,0.17602684]
[1744103901505,0.605513,79092.0,79091.0,0.17602684]
[1744103901946,0.606513,79092.0,79091.0,0.17602684]
[1744103903596,0.606513,79092.0,79091.0,0.12842684]
[1744103903755,0.7202655,79092.0,79091.0,0.0021682]
[1744103904104,0.8654255,79092.0,79091.0,0.0021682]
[1744103908706,0.751673,79092.0,79091.0,0.0021682]
[1744103910966,0.606513,79092.0,79091.0,0.0021682]
[1744103911200,0.606513,79092.0,79091.0,0.12842684]
[1744103911540,0.266513,79092.0,79091.0,0.12842684]
[1744103911764,0.606513,79092.0,79091.0,0.12842684]
[1744103911964,0.341,79092.0,79091.0,0.12842684]
[1744103912147,0.001,79092.0,79091.0,0.12842684]
[1744103912679,0.013643,79092.0,79091.0,0.14027127]
[1744103912881,0.013643,79092.0,79091.0,0.14127127]
[1744103913266,0.013643,79092.0,79091.0,0.14027127]
[1744103913473,0.013643,79092.0,79091.0,0.14227127]
[1744103913704,0.012643,79092.0,79091.0,0.14227127]
[1744103913906,0.012643,79092.0,79091.0,0.15411258]
[1744103914689,0.012643,79092.0,79091.0,0.15511258]
[1744103915410,0.605512,79093.0,79091.0,0.15511258]
[1744103915411,0.352643,79093.0,79091.0,0.15511258]
[1744103915543,0.265513,79092.0,79091.0,0.02885394]
[1744103915745,0.265513,79092.0,79091.0,0.15511258]
[1744103920204,0.34,79095.0,79091.0,0.17555066]
[1744103920538,0.012641,79107.0,79097.0,0.012642]
[1744103920712,0.265477,79103.0,79098.0,0.17535864]
[1744103920913,0.265477,79103.0,79099.0,0.252847]
[1744103921136,0.265477,79103.0,79100.0,0.12625864]
[1744103921330,0.265477,79103.0,79100.0,0.2293474]
[1744103921531,0.605475,79104.0,79100.0,0.2293474]
[1744103921739,0.34,79104.0,79102.0,0.12625864]
[1744103922159,0.592833,79104.0,79102.0,0.12625864]
[1744103922669,0.0099482,79106.0,79105.0,0.265469]
[1744103922862,0.0099482,79106.0,79105.0,0.4775187]
[1744103923065,0.012639,79119.0,79112.0,0.265446]
[1744103923262,0.012639,79119.0,79112.0,0.48540464]
[1744103923473,0.0099151,79114.0,79112.0,0.48540464]
[1744103923679,0.265426,79118.0,79112.0,0.48540464]
[1744103923869,0.34,79117.0,79112.0,0.48540464]
[1744103924475,0.0098142,79120.0,79112.0,0.48540464]
[1744103925091,0.265428,79118.0,79112.0,0.48540464]
[1744103925232,0.01270382,79113.0,79112.0,0.25546052]
[1744103925431,0.26550582,79113.0,79112.0,0.16176052]
[1744103926217,0.26550582,79113.0,79112.0,0.16276052]
[1744103926403,0.26650582,79113.0,79112.0,0.15394438]
[1744103926815,0.26550582,79113.0,79112.0,0.15094438]
[1744103927218,0.26550582,79113.0,79112.0,0.12725864]
[1744103932053,0.60550582,79113.0,79112.0,0.001]
[1744103932351,0.73176127,79113.0,79112.0,0.001]
[1744103934629,0.73476127,79113.0,79112.0,0.001]
[1744103934832,0.265467,79106.0,79101.0,0.252839]
[1744103935040,0.265472,79105.0,79102.0,0.12625864]
[1744103935549,0.265467,79106.0,79102.0,0.12625864]
[1744103935983,0.265472,79105.0,79102.0,0.12625864]
[1744103936182,0.012641,79104.0,79102.0,0.1725926]
[1744103936360,0.265474,79104.0,79102.0,0.1725926]
[1744103936903,0.265472,79105.0,79102.0,0.1745926]
[1744103937217,0.252833,79104.0,79102.0,0.12825864]
[1744103937395,0.012641,79103.0,79102.0,0.12825864]
[1744103937576,0.012641,79103.0,79102.0,0.12925864]
[1744103938113,0.265472,79105.0,79102.0,0.12725864]
[1744103938347,0.252834,79104.0,79102.0,0.12925864]
[1744103938475,0.0098769,79110.0,79105.0,0.012641]